bitfinex-derivatives/quotes_ETHF0:USTF0_20260128
["timestamp","ask_amount","ask_price","bid_price","bid_amount"]
[1769610487081,1.05212733,3024.4,3023.2,3.41302999]
[1769610488185,3.35776548,3024.8,3023.8,3.41302999]
[1769610488375,4.40989281,3024.8,3023.8,3.41302999]
[1769610488876,1.05212733,3025.0,3023.8,3.41302999]
[1769610489675,3.35776548,3025.1,3024.0,3.41302999]
[1769610489879,3.35776548,3025.1,3024.1,3.41302999]
[1769610490184,1.05212733,3024.9,3024.1,3.41302999]
[1769610490480,1.05212733,3024.7,3024.0,1.987]
[1769610490682,1.05212733,3024.7,3024.0,5.4038066]
[1769610491686,3.35776548,3024.4,3024.0,0.00377661]
[1769610491874,1.05212733,3024.5,3024.0,0.00377661]
[1769610492073,1.05212733,3024.7,3024.0,0.00377661]
[1769610492275,4.40989281,3024.7,3024.0,0.00377661]
[1769610493778,3.35776548,3024.7,3024.0,0.00377661]
[1769610494981,0.00375984,3024.9,3024.0,3.4168066]
[1769610495574,0.00375984,3024.9,3024.1,6.55702999]
[1769610495776,3.35776548,3025.1,3024.2,3.41302999]
[1769610496686,0.00384178,3025.1,3024.2,3.41302999]
[1769610498881,3.36160726,3025.1,3024.2,6.56302999]
[1769610499275,3.36160726,3025.1,3024.3,3.41302999]
[1769610500486,3.36160726,3025.1,3024.2,3.152]
[1769610500682,3.36160726,3025.1,3024.1,3.31757]
[1769610500884,3.36160726,3025.1,3024.0,0.00377661]
[1769610501098,3.35776548,3024.8,3023.5,1.942]
[1769610501581,3.35776548,3024.8,3023.5,5.35502999]
[1769610501978,3.35776548,3024.8,3023.5,5.35748882]
[1769610502185,3.35776548,3024.8,3023.5,3.41548882]
[1769610505288,0.00384178,3025.1,3023.9,3.47571387]
[1769610506180,3.6179344,3025.1,3023.9,3.47571387]
[1769610506991,3.6179344,3025.1,3024.0,3.151]
[1769610507182,3.6179344,3025.1,3023.7,3.151]
[1769610507691,3.6179344,3025.1,3023.7,6.53829655]
[1769610508091,3.6179344,3025.1,3023.8,3.38729655]
[1769610510087,3.6179344,3025.1,3023.8,3.55288655]
[1769610510289,3.6179344,3025.1,3024.0,3.38729655]
[1769610510490,0.00384178,3025.1,3024.0,3.38729655]
[1769610510797,0.00384178,3025.1,3024.0,3.55287655]
[1769610510988,0.00384178,3025.1,3024.2,3.38729655]
[1769610511190,3.57077533,3025.4,3024.2,3.38729655]
[1769610512007,3.57077533,3025.4,3024.3,5.527]
[1769610512308,3.57408902,3025.4,3024.4,3.38729655]
[1769610512800,0.00331369,3025.4,3024.4,3.38729655]
[1769610513202,3.21331512,3025.3,3024.4,3.38729655]
[1769610513408,3.57408902,3025.4,3024.4,3.38729655]
[1769610513709,3.21340889,3025.3,3024.4,3.38729655]
[1769610513904,3.57408902,3025.4,3024.4,3.38729655]
[1769610514115,3.21341387,3025.3,3024.4,3.38729655]
[1769610514306,3.21341387,3025.2,3024.4,3.38729655]
[1769610514605,3.57408902,3025.4,3024.4,3.38729655]
[1769610514911,3.21314629,3025.3,3024.4,3.38729655]
[1769610515106,3.21314629,3025.2,3024.4,3.38729655]
[1769610515307,3.57408902,3025.4,3024.4,3.38729655]
[1769610515503,3.21150064,3025.3,3024.4,3.38729655]
[1769610515707,3.21150064,3025.2,3024.4,3.38729655]
[1769610516014,0.00331369,3025.4,3024.4,3.38729655]
[1769610516207,3.57077533,3025.8,3024.6,3.55283655]
[1769610516405,1.81949854,3025.7,3024.8,3.55282655]
[1769610516605,3.57077533,3026.1,3024.8,3.55282655]
[1769610516902,3.57077533,3026.1,3025.0,3.38729655]
[1769610517297,3.57478597,3026.1,3025.0,3.38729655]
[1769610518413,3.57478597,3026.1,3025.2,3.38729655]
[1769610518606,0.00401064,3026.1,3025.2,3.38729655]
[1769610519802,3.57077533,3026.7,3025.5,3.38729655]
[1769610520009,4.91437326,3027.0,3025.7,3.55277655]
[1769610520010,3.57077533,3027.0,3025.7,3.55277655]
[1769610520506,3.57077533,3027.0,3025.8,6.046]
[1769610521009,0.00384683,3027.0,3025.9,3.55276655]
[1769610522212,3.57462216,3027.0,3025.9,3.55276655]
[1769610522508,3.57462216,3027.0,3026.0,3.157]
[1769610523215,3.57462216,3027.0,3026.0,6.54429655]
[1769610523815,3.57462216,3027.0,3026.1,3.38729655]
[1769610524012,0.00384683,3027.0,3026.1,3.38729655]
[1769610524914,3.57077533,3027.6,3026.1,3.38729655]
[1769610525607,3.57077533,3027.6,3026.1,5.32829655]
[1769610525807,3.57313456,3027.6,3026.1,5.32829655]
[1769610526207,3.57313456,3027.6,3026.2,3.38729655]
[1769610527718,3.57313456,3027.6,3026.2,6.24829655]
[1769610527918,3.57313456,3027.6,3026.3,0.41671035]
[1769610528113,3.57313456,3027.6,3026.4,0.41671035]
[1769610528320,3.57077533,3027.4,3026.5,0.41660018]
[1769610528518,3.57077533,3027.4,3026.6,0.41660018]
[1769610528715,3.57077533,3027.4,3026.7,0.41660018]
[1769610528916,3.57077533,3027.4,3026.8,0.41660018]
[1769610529116,3.57077533,3027.4,3026.9,0.41660018]
[1769610529316,3.57077533,3027.4,3026.2,6.54629655]
[1769610529722,3.57077533,3027.4,3026.4,3.38729655]
[1769610531212,3.57077533,3027.4,3026.6,3.38729655]
[1769610531716,3.57077533,3027.4,3025.8,0.00352208]
[1769610531717,3.57077533,3027.4,3026.4,3.159]
[1769610532619,3.57077533,3027.4,3026.4,6.54629655]
[1769610532913,40.80235923,3027.6,3026.5,3.38729655]
[1769610533518,44.37313456,3027.6,3026.5,3.38729655]
[1769610533721,3.57077533,3027.5,3026.5,3.38729655]
[1769610534221,3.57077533,3027.5,3026.4,3.159]
[1769610534521,3.57077533,3027.5,3026.4,3.163]
[1769610534915,3.57077533,3027.5,3026.4,6.75999278]
[1769610535114,3.57077533,3027.5,3026.5,3.59699278]
[1769610535517,0.00235923,3027.6,3026.5,3.59699278]
[1769610535822,3.5561586,3027.6,3026.4,3.163]
[1769610536216,3.5561586,3027.6,3026.4,6.75999278]
[1769610536416,3.5561586,3027.6,3026.1,3.76245278]
[1769610536613,3.5561586,3027.6,3026.2,8.84499278]
[1769610536819,3.5561586,3027.6,3026.3,3.59699278]
[1769610540522,40.8,3028.1,3026.5,0.16544]
[1769610540727,0.16533,3028.7,3026.6,3.59699278]
[1769610540929,0.16533,3028.6,3026.6,3.59699278]
[1769610541228,40.8,3028.5,3026.7,0.45927514]
[1769610541428,40.8,3028.5,3026.9,3.59699278]
[1769610541623,40.80415778,3028.5,3027.0,4.05626792]
[1769610541823,40.80415778,3028.5,3027.1,4.05626792]
[1769610542020,40.80415778,3028.5,3027.2,0.45927514]
[1769610542226,40.80415778,3028.5,3027.1,3.59699278]
[1769610542227,40.80415778,3028.5,3027.3,0.45927514]
[1769610542416,40.80415778,3028.5,3027.4,0.45927514]
[1769610542618,3.55379937,3028.4,3027.5,0.45927514]
[1769610542821,3.55379937,3028.4,3026.9,0.16542]
[1769610543528,40.80415778,3028.5,3024.3,11.56874963]
[1769610543529,3.55379937,3028.1,3026.5,3.59699278]
[1769610547328,3.55379937,3028.1,3026.6,3.59699278]
[1769610548336,3.55379937,3028.1,3026.7,3.59699278]
[1769610551632,3.55379937,3028.1,3026.6,1.98220848]
[1769610552537,3.55379937,3028.1,3026.6,5.57920126]
[1769610553837,3.55379937,3028.1,3026.7,3.59699278]
[1769610554230,3.55379937,3028.1,3026.8,3.59699278]
[1769610554737,3.55379937,3028.1,3026.9,0.46050766]
[1769610555032,3.55379937,3028.1,3027.0,0.46050766]
[1769610555232,3.55379937,3028.1,3027.1,0.46050766]
[1769610555431,3.55379937,3028.1,3027.2,0.46050766]
[1769610555631,3.55379937,3028.1,3027.3,0.46050766]
[1769610555932,3.55379937,3028.1,3027.4,0.46050766]
[1769610556131,3.55379937,3028.1,3027.5,0.46050766]
[1769610556331,3.55379937,3028.1,3026.8,3.59699278]
[1769610562541,3.55379937,3028.1,3026.8,5.57920126]
[1769610563141,3.55379937,3028.1,3026.9,3.59699278]
[1769610565541,3.42671326,3027.6,3026.3,6.45771434]
[1769610565741,3.42671326,3027.6,3026.2,6.13579033]
[1769610566943,40.8,3027.5,3026.2,6.13579033]
[1769610567139,3.3592493,3027.4,3026.2,6.13579033]
[1769610567340,3.14383232,3027.4,3026.2,6.13579033]
[1769610567846,3.14383232,3027.4,3026.2,3.176]
[1769610568046,3.14383232,3027.4,3026.2,6.87449004]
[1769610568346,3.14383232,3027.4,3026.3,0.4538854]
[1769610568534,3.14383232,3027.4,3026.4,0.4538854]
[1769610568738,3.14383232,3027.4,3026.5,0.4538854]
[1769610568938,3.14383232,3027.4,3026.6,0.4538854]
[1769610569137,3.14383232,3027.4,3026.2,6.87449004]
[1769610569337,3.14383232,3027.4,3026.1,2.95979033]
[1769610569338,3.14383232,3027.4,3026.1,6.65828037]
[1769610570536,3.14383232,3027.4,3026.2,2.95979033]
[1769610571550,3.14383232,3027.4,3026.2,6.65828037]
[1769610572352,3.14383232,3027.4,3026.3,3.69849004]
[1769610573846,3.14383232,3027.4,3026.3,2.95979033]
[1769610574053,3.14383232,3027.4,3026.2,2.95979033]
[1769610574245,3.14383232,3027.4,3026.1,6.65828037]
[1769610574456,3.14383232,3027.4,3025.9,2.95979033]
[1769610574748,3.3592493,3027.2,3025.8,2.96331241]
[1769610575455,3.3592493,3027.2,3025.9,2.95979033]
[1769610575949,3.3592493,3026.9,3025.9,2.95979033]
[1769610580055,3.3592493,3026.9,3025.8,6.66180245]
[1769610580955,3.3592493,3026.9,3025.9,2.95979033]
[1769610581145,3.3592493,3026.9,3026.0,0.42612888]
[1769610581347,3.3592493,3026.9,3026.1,0.42612888]
[1769610581550,3.3592493,3026.9,3026.2,0.42612888]
[1769610581755,3.3592493,3026.9,3025.8,6.66180245]
[1769610581756,3.3592493,3026.9,3026.3,0.42612888]
[1769610581955,3.3592493,3026.9,3026.4,0.42612888]
[1769610582156,3.3592493,3026.9,3026.5,0.36712212]
[1769610582356,3.3592493,3026.9,3025.8,6.66180245]
[1769610582761,3.3592493,3026.9,3025.8,2.96331241]
[1769610586072,3.3592493,3026.9,3025.8,6.66180245]
[1769610586272,3.3592493,3026.9,3025.9,3.69849004]
[1769610586473,3.14387071,3026.9,3026.0,3.69849004]
[1769610587477,0.16539,3027.6,3026.2,3.69849004]
[1769610587970,40.8,3027.6,3026.2,3.69849004]
[1769610588174,0.16535,3028.2,3026.4,6.65828037]
[1769610588363,0.16535,3028.2,3026.5,3.69849004]
[1769610588561,3.3592493,3028.1,3026.5,3.69849004]
[1769610588761,3.3592493,3027.9,3026.5,3.69849004]
[1769610594177,3.3592493,3027.7,3026.6,3.69849004]
[1769610594380,3.3592493,3027.7,3026.8,3.69849004]
[1769610594878,3.3592493,3027.7,3026.9,0.41746836]
[1769610595078,3.3592493,3027.7,3027.0,0.41746836]
[1769610595276,3.3592493,3027.7,3027.1,0.41746836]
[1769610595468,3.3592493,3027.7,3027.2,0.41746836]
[1769610595671,3.3592493,3027.7,3027.3,0.41746836]
[1769610595878,3.3592493,3027.7,3027.4,0.41746836]
[1769610596073,40.8,3027.8,3027.5,0.41746836]
[1769610596379,44.38588744,3027.8,3027.0,3.41275913]
[1769610596580,3.58588744,3027.7,3026.7,3.41275913]
[1769610598079,3.58588744,3027.7,3026.4,6.37254946]
[1769610598779,3.58588744,3027.7,3026.5,3.41275913]
[1769610599179,3.58588744,3027.7,3026.4,6.16679033]
[1769610599375,3.58588744,3027.7,3026.4,6.61975913]
[1769610599573,3.58588744,3027.5,3026.5,3.41275913]
[1769610599770,3.58588744,3027.1,3026.3,2.95979033]
[1769610599975,3.58588744,3026.9,3026.2,2.95979033]
[1769610600177,1.04983981,3026.8,3026.1,2.95979033]
[1769610600377,7.91683981,3027.6,3025.8,6.62428121]
[1769610600378,3.58588744,3026.5,3025.8,0.00352208]
[1769610600578,3.58588744,3026.3,3025.8,0.00352208]
[1769610600775,0.00391095,3026.3,3025.8,3.41628121]
[1769610601079,40.8,3026.5,3025.8,0.00352208]
[1769610601282,40.8,3026.5,3025.5,2.95979033]
[1769610601283,1.04983981,3025.9,3025.5,2.95979033]
[1769610601476,40.8,3026.5,3024.8,3.94381549]
[1769610601477,3.58588744,3025.6,3024.8,3.94381549]
[1769610601676,3.58588744,3025.6,3024.7,3.94381549]
[1769610602081,3.58588744,3025.6,3024.6,3.94381549]
[1769610602271,3.58992174,3025.6,3024.6,0.00427923]
[1769610602477,3.58992174,3025.6,3024.6,3.41703836]
[1769610602676,0.0040343,3025.6,3024.6,3.41703836]
[1769610602976,3.58992174,3025.6,3024.6,0.00427923]
[1769610603979,3.58992174,3025.6,3024.6,3.41703836]
[1769610604179,0.0040343,3025.6,3024.6,3.41703836]
[1769610604382,3.58992174,3025.6,3024.6,0.00427923]
[1769610604773,3.58992174,3025.6,3024.6,3.41703836]
[1769610604986,3.58992174,3025.6,3024.6,0.00427923]
[1769610605478,3.58992174,3025.6,3023.9,4.95963411]
[1769610605479,3.58992174,3025.6,3023.7,7.35657462]
[1769610606072,3.58992174,3025.6,3023.8,3.41275913]
[1769610606277,3.58588744,3025.4,3023.6,3.94381549]
[1769610606478,3.75139744,3025.2,3023.8,0.00272841]
[1769610607281,3.58588744,3025.2,3023.8,0.00272841]
[1769610607488,3.75144744,3024.4,3023.4,0.61909172]
[1769610607681,3.58588744,3024.4,3023.4,4.03185085]
[1769610607987,3.58588744,3024.7,3023.4,4.03185085]
[1769610608385,3.58588744,3024.7,3023.4,4.03514608]
[1769610609484,40.8,3025.3,3023.5,3.41275913]
[1769610609485,3.58588744,3025.0,3023.5,3.41275913]
[1769610609686,3.58588744,3025.0,3023.6,3.41275913]
[1769610610377,40.8,3025.3,3023.7,3.41275913]
[1769610610586,3.58992174,3025.6,3024.1,3.41275913]
[1769610610789,3.58992174,3025.6,3024.3,3.41275913]
[1769610610991,3.58588744,3025.4,3024.3,3.41275913]
[1769610611486,40.8,3025.5,3024.3,3.41275913]
[1769610611790,3.58588744,3025.7,3024.1,3.27]
[1769610611791,3.31,3027.1,3025.0,1.57681793]
[1769610611987,3.58588744,3027.0,3025.2,3.41275913]
[1769610612189,44.38588744,3026.9,3025.2,3.41275913]
[1769610612487,3.58588744,3026.8,3025.2,3.41275913]
[1769610612783,3.58944147,3026.8,3025.2,3.41275913]
[1769610613388,3.58944147,3026.8,3025.4,3.41275913]
[1769610613693,2.554,3027.7,3025.4,3.41275913]
[1769610613694,3.58588744,3027.5,3025.6,3.41275913]
[1769610614189,40.8,3027.4,3025.6,3.41275913]
[1769610614388,3.58588744,3027.3,3025.6,3.41275913]
[1769610614690,3.58979467,3027.3,3025.8,3.41275913]
[1769610615881,3.58979467,3027.3,3025.6,0.00274808]
[1769610615882,3.58979467,3027.3,3025.6,3.28274808]
[1769610616088,3.58588744,3027.1,3025.6,0.00274808]
[1769610616288,3.75129744,3027.1,3025.6,3.41550721]
[1769610616490,0.00390723,3027.3,3026.1,3.41275913]
[1769610616893,3.58979467,3027.3,3026.1,3.41275913]
[1769610618392,3.75519467,3027.3,3025.6,3.41550721]
[1769610620499,3.58979467,3027.3,3025.6,3.41550721]
[1769610620800,0.00390723,3027.3,3025.6,3.41550721]
[1769610620993,3.58979467,3027.3,3025.8,3.41275913]
[1769610621384,3.58588744,3028.7,3026.7,3.41275913]
[1769610621594,3.58588744,3028.7,3025.7,3.288]
[1769610621595,3.58588744,3027.8,3026.0,3.41275913]
[1769610621898,0.1654,3027.3,3025.7,3.41275913]
[1769610622089,3.58588744,3027.2,3025.7,3.41275913]
[1769610622295,0.00290909,3027.2,3025.7,3.41275913]
[1769610622793,3.58879653,3027.2,3025.7,3.41275913]
[1769610622989,0.00290909,3027.2,3025.7,3.41275913]
[1769610623695,40.8,3027.7,3026.2,3.41275913]
[1769610623895,40.8,3027.7,3026.4,3.41275913]
[1769610624091,3.58588744,3027.6,3026.0,3.41275913]
[1769610625597,3.58994308,3027.6,3026.0,3.41275913]
[1769610625992,0.00405564,3027.6,3026.2,3.62968454]
[1769610626191,3.35658804,3028.2,3026.3,3.62968454]
[1769610626397,3.35658804,3028.2,3026.7,3.62968454]
[1769610626695,40.8,3028.1,3026.7,3.62968454]
[1769610627100,3.35658804,3028.2,3026.7,3.62968454]
[1769610627301,3.35948048,3028.2,3026.7,3.62968454]
[1769610627600,44.15948048,3028.2,3026.7,3.62968454]
[1769610627800,3.39906603,3028.1,3026.7,3.62968454]
[1769610629394,40.80289244,3028.2,3026.7,3.62968454]
[1769610629600,40.80289244,3028.2,3026.6,1.57681793]
[1769610629601,40.80289244,3028.2,3026.9,3.55474325]
[1769610630202,3.39906603,3028.1,3026.9,3.55474325]
[1769610632501,44.20195847,3028.2,3026.9,3.55474325]
[1769610633407,40.80289244,3028.2,3026.9,3.55474325]
[1769610634001,0.00289244,3028.2,3026.9,3.55474325]
[1769610634309,3.39906603,3029.1,3027.2,3.72014325]
[1769610634602,3.47429,3029.4,3027.2,3.72014325]
[1769610634603,44.19906603,3029.0,3027.2,3.72014325]
[1769610634811,3.39906603,3028.9,3027.2,3.72014325]
[1769610635110,3.39906603,3028.9,3026.8,1.9704472]
[1769610635111,3.39906603,3029.5,3027.7,3.55474325]
[1769610635310,3.40293891,3029.5,3027.9,3.55474325]
[1769610635508,0.00387288,3029.5,3028.1,3.55474325]
[1769610635715,3.40293891,3029.5,3028.3,3.55474325]
[1769610636003,3.40293891,3029.5,3028.4,0.40635463]
[1769610636304,3.40293891,3029.5,3027.9,6.87872859]
[1769610636305,3.39906603,3029.3,3027.9,3.55872859]
[1769610636508,3.39906603,3029.3,3028.0,0.40621564]
[1769610636809,3.39906603,3028.9,3027.9,0.00398534]
[1769610637410,3.56437603,3028.9,3027.9,0.00398534]
[1769610637607,3.56437603,3028.9,3027.3,3.55474325]
[1769610637804,3.56437603,3028.9,3027.4,0.4090682]
[1769610638004,3.39906603,3028.7,3027.5,0.4090682]
[1769610638306,3.39906603,3028.0,3026.6,6.86274325]
[1769610638709,3.39906603,3028.0,3026.7,3.55474325]
[1769610638907,3.39906603,3028.3,3026.7,3.55474325]
[1769610639407,3.39906603,3028.7,3026.9,3.55474325]
[1769610639908,3.39906603,3028.7,3027.1,3.55474325]
[1769610640507,3.39906603,3028.5,3026.8,3.55474325]
[1769610640710,3.39906603,3028.3,3026.8,3.55474325]
[1769610641206,3.39906603,3028.1,3026.6,3.55882859]
[1769610641410,3.39906603,3027.9,3026.6,3.55882859]
[1769610641615,3.39906603,3027.2,3026.0,1.9704472]
[1769610641805,3.56446603,3027.2,3025.8,1.9704472]
[1769610642305,3.39906603,3027.2,3026.0,3.55474325]
[1769610642500,0.16538,3027.7,3026.1,3.55474325]
[1769610642709,3.39906603,3027.5,3026.1,3.55732173]
[1769610643408,3.56445603,3027.4,3026.1,0.00257848]
[1769610643608,3.39906603,3027.2,3026.1,0.00257848]
[1769610643809,3.39906603,3027.2,3026.1,3.55732173]
[1769610644306,3.39906603,3027.2,3026.1,0.00257848]
[1769610645110,3.39906603,3027.2,3026.1,3.55732173]
[1769610646404,0.00284678,3027.7,3026.1,3.55732173]
[1769610646405,3.39906603,3027.6,3026.1,3.55732173]
[1769610646622,40.80284678,3027.7,3026.4,3.55474325]
[1769610646810,3.40191281,3027.7,3026.4,3.55474325]
[1769610647111,3.39906603,3027.5,3026.2,5.2944472]
[1769610647316,3.39906603,3027.5,3026.2,3.324]
[1769610647813,3.39906603,3027.5,3026.2,3.55474325]
[1769610648022,3.39906603,3027.4,3026.1,0.00257848]
[1769610648513,3.39906603,3027.1,3026.1,0.00257848]
[1769610648713,3.56447603,3027.1,3025.8,1.9704472]
[1769610649112,3.56447603,3027.1,3025.8,5.52519045]
[1769610649618,3.56447603,3027.1,3025.9,3.55474325]
[1769610650121,3.56447603,3027.1,3026.0,0.41037051]
[1769610650320,3.56447603,3027.1,3026.1,0.41037051]
[1769610650520,3.56447603,3027.1,3026.2,0.41037051]
[1769610650714,3.56447603,3027.1,3026.3,0.41037051]
[1769610650912,3.56447603,3027.1,3026.4,0.41037051]
[1769610651113,3.56447603,3027.1,3026.5,0.41037051]
[1769610651313,3.56447603,3027.1,3026.6,0.40789273]
[1769610651616,3.56447603,3027.1,3025.9,3.55474325]
[1769610651818,3.56447603,3027.1,3025.8,1.97344603]
[1769610652720,3.39906603,3026.9,3025.8,1.97344603]
[1769610653119,3.39906603,3026.9,3025.8,5.52818928]
[1769610653320,40.8,3027.0,3025.9,5.52519045]
[1769610653520,40.8,3027.0,3026.0,3.55474325]
[1769610653714,44.19906603,3027.0,3026.0,3.55474325]
[1769610654120,3.39906603,3027.4,3026.2,3.55474325]
[1769610654421,0.00284678,3027.7,3026.6,3.55474325]
[1769610654618,44.168139,3027.7,3026.6,3.55474325]
[1769610654826,3.36529222,3027.6,3026.4,1.9704472]
[1769610655018,3.36529222,3027.6,3026.2,5.2924472]
[1769610655218,3.36529222,3027.6,3026.3,3.63729258]
[1769610655419,3.36529222,3027.6,3026.4,3.63729258]
[1769610655820,40.80284678,3027.7,3026.4,3.63729258]
[1769610657024,44.168139,3027.7,3026.4,3.63729258]
[1769610657830,0.00284678,3027.7,3026.4,3.63729258]
[1769610658020,0.00284678,3027.7,3026.5,3.63729258]
[1769610658327,3.368139,3027.7,3026.5,3.63729258]
[1769610658523,3.368139,3027.7,3026.5,6.95929258]
[1769610659027,3.368139,3027.7,3026.6,3.325]
[1769610659633,0.00284678,3027.7,3026.7,3.63729258]
[1769610660626,3.36529222,3028.9,3027.1,3.63729258]
[1769610660831,3.36529222,3029.2,3027.4,3.63729258]
[1769610661032,40.8,3029.1,3027.6,3.63729258]
[1769610661238,40.8,3029.1,3027.6,5.60773978]
[1769610661526,40.8,3029.1,3027.7,3.63729258]
[1769610661727,40.8,3029.1,3027.6,1.9704472]
[1769610661728,40.80322413,3029.1,3028.0,3.63729258]
[1769610662030,3.36529222,3029.5,3028.0,3.64021278]
[1769610662228,3.36529222,3028.8,3027.4,1.9704472]
[1769610662422,3.36529222,3028.6,3027.0,5.60773978]
[1769610662625,3.36529222,3028.6,3027.1,3.63729258]
[1769610662832,3.36529222,3028.6,3027.2,3.63729258]
[1769610663126,3.36529222,3028.6,3027.2,3.338]
[1769610663429,3.36953826,3028.6,3027.3,0.41015781]
[1769610663619,3.36953826,3028.6,3027.2,0.00299129]
[1769610663826,3.36953826,3028.6,3026.6,5.3084472]
[1769610664024,3.36529222,3028.3,3026.7,3.63729258]
[1769610664224,3.36529222,3028.3,3026.8,3.63729258]
[1769610664634,3.36529222,3028.3,3026.7,3.339]
[1769610664825,3.36529222,3028.3,3026.7,0.00285068]
[1769610665223,3.36529222,3028.3,3026.8,3.63729258]
[1769610665529,3.36529222,3028.3,3026.8,6.98129258]
[1769610665929,3.36529222,3028.3,3026.9,3.63729258]
[1769610667134,3.36529222,3028.3,3026.9,5.60773978]
[1769610667341,3.36953826,3028.6,3027.0,3.63729258]
[1769610667637,3.36953826,3028.6,3027.2,3.63729258]
[1769610668934,3.36953826,3028.6,3026.7,1.97329788]
[1769610668935,3.36529222,3028.1,3026.7,1.97329788]
[1769610669142,3.36529222,3028.1,3026.7,0.00285068]
[1769610669331,3.36529222,3028.1,3026.7,3.64014326]
[1769610669833,3.36529222,3028.1,3026.8,3.63729258]
[1769610670433,3.36529222,3028.5,3026.8,3.63729258]
[1769610670637,3.36529222,3028.5,3027.1,3.63729258]
[1769610670937,0.00424604,3028.6,3027.4,3.63729258]
[1769610671130,0.00424604,3028.6,3027.6,3.63729258]
[1769610671731,3.36529222,3029.3,3027.6,3.63729258]
[1769610671930,4.91437326,3029.7,3027.6,3.63729258]
[1769610671931,8.27966548,3029.7,3027.9,3.63729258]
[1769610672137,40.8,3029.6,3028.1,3.63729258]
[1769610672338,3.36529222,3029.5,3028.1,3.63729258]
[1769610672538,3.36529222,3029.5,3028.2,3.357]
[1769610672740,3.36529222,3029.5,3027.8,2.96372459]
[1769610672741,3.53059222,3029.2,3027.8,2.96372459]
[1769610672932,3.53059222,3029.2,3027.5,3.63729258]
[1769610673628,3.53059222,3029.2,3027.6,3.63729258]
[1769610673836,0.00391811,3029.5,3027.6,5.61315237]
[1769610674133,3.36921033,3029.5,3027.9,3.63729258]
[1769610675139,3.36529222,3029.1,3027.7,3.363]
[1769610675340,3.53058222,3029.2,3027.8,3.63729258]
[1769610675840,3.53058222,3029.2,3027.9,0.40863513]
[1769610676134,3.36529222,3029.0,3027.3,5.61315237]
[1769610676537,3.53060222,3029.0,3027.3,3.63729258]
[1769610677641,3.36529222,3028.8,3027.3,3.63729258]
[1769610678140,3.36529222,3028.8,3026.9,3.95163279]
[1769610678141,3.53062222,3028.6,3026.9,5.61315237]
[1769610678440,3.53062222,3028.6,3027.0,3.63729258]
[1769610679441,3.36529222,3028.6,3027.2,3.63729258]
[1769610679840,3.53062222,3028.6,3027.1,1.97585979]
[1769610680041,3.36529222,3028.4,3026.9,5.61315237]
[1769610680336,3.36529222,3028.4,3027.0,5.61315237]
[1769610680644,3.36529222,3028.4,3026.8,1.97585979]
[1769610681442,3.36529222,3028.3,3027.1,3.63729258]
[1769610681646,3.36529222,3028.3,3027.2,3.63729258]
[1769610681941,3.36529222,3028.3,3027.0,1.97585979]
[1769610682336,3.36529222,3028.3,3026.9,1.97585979]
[1769610682542,3.36529222,3028.1,3026.7,1.97871047]
[1769610682735,3.36529222,3028.1,3026.8,1.97585979]
[1769610683242,3.36529222,3027.9,3026.8,1.97585979]
[1769610683935,3.36529222,3027.5,3026.4,3.95163279]
[1769610684137,0.16538,3027.6,3026.1,3.63729258]
[1769610684138,1.78017003,3027.3,3026.1,2.96378969]
[1769610684339,1.78017003,3027.3,3026.0,2.96378969]
[1769610684940,1.78017003,3027.3,3026.0,2.96788467]
[1769610685239,1.77721944,3027.1,3026.0,0.00409498]
[1769610685447,1.94262944,3027.1,3026.0,0.00409498]
[1769610685943,1.94262944,3027.1,3026.0,3.52379752]
[1769610686243,1.77721944,3027.1,3026.0,3.52379752]
[1769610686446,0.00290469,3027.3,3026.2,3.51970254]
[1769610686746,0.00290469,3027.3,3026.3,3.61650107]
[1769610687251,1.79142159,3028.1,3026.6,3.61650107]
[1769610687643,1.79142159,3027.9,3026.6,3.61650107]
[1769610688140,1.79142159,3027.9,3026.7,0.38661068]
[1769610688448,1.79384066,3027.9,3026.8,0.38661068]
[1769610688643,0.00241907,3027.9,3026.9,4.00311175]
[1769610688843,0.00241907,3027.9,3027.1,3.61650107]
[1769610689047,1.44399713,3028.7,3027.3,3.61650107]
[1769610689239,1.05738645,3028.3,3026.9,3.61650107]
[1769610689440,1.05738645,3028.1,3026.7,2.96378969]
[1769610689645,1.05738645,3028.1,3026.8,3.61650107]
[1769610690144,1.06064704,3028.1,3026.8,3.61650107]
[1769610691547,1.06064704,3028.1,3026.9,3.61650107]
[1769610691947,0.00326059,3028.1,3026.9,3.61650107]
[1769610692849,0.92004875,3028.1,3026.9,3.61650107]
[1769610693340,0.92004875,3028.1,3026.7,2.96378969]
[1769610693555,1.08540875,3028.1,3026.6,2.96378969]
[1769610693748,0.16862059,3028.1,3026.7,3.61650107]
[1769610693953,1.08540875,3028.1,3026.7,3.61650107]
[1769610694846,40.8,3028.0,3026.7,3.61650107]
[1769610695651,1.05272385,3027.9,3026.7,3.61650107]
[1769610695843,0.00326059,3028.1,3026.7,3.61650107]
[1769610696049,0.00326059,3028.1,3027.1,6.58029076]
[1769610696248,0.00326059,3028.1,3027.2,3.61650107]
[1769610696758,40.8,3028.6,3027.3,3.61650107]
[1769610697860,40.8,3028.6,3027.5,3.61650107]
[1769610697861,0.00258736,3028.6,3027.5,3.61650107]
[1769610701254,0.00258736,3028.6,3027.6,4.01477849]
[1769610701558,0.00258736,3028.6,3027.3,3.385]
[1769610701559,0.00258736,3028.6,3027.7,4.01477849]
[1769610701862,0.87360966,3028.1,3027.0,2.96378969]
[1769610702059,0.87360966,3028.1,3026.9,3.61650107]
[1769610703764,40.8,3028.0,3026.9,3.61650107]
[1769610704562,40.8,3028.0,3027.1,3.61650107]
[1769610705158,40.8,3028.0,3027.1,6.58029076]
[1769610705359,40.8,3028.0,3027.2,3.61650107]
[1769610705561,0.90617858,3028.6,3027.2,3.61650107]
[1769610705966,41.70359122,3028.5,3027.2,3.61650107]
[1769610707670,40.8,3028.5,3027.2,3.61650107]
[1769610708967,0.95786734,3028.4,3027.2,3.61650107]
[1769610710970,0.00258736,3028.6,3027.2,3.61650107]
[1769610711460,40.8,3028.3,3027.2,3.61650107]
[1769610711662,40.8,3028.3,3027.3,3.61650107]
[1769610712866,0.98604509,3028.2,3027.0,6.58029076]
[1769610713070,0.98604509,3028.2,3027.0,3.61650107]
[1769610713871,40.8,3028.3,3027.2,3.61650107]
[1769610714070,40.8,3028.3,3027.1,0.39653326]
[1769610714071,0.00258736,3028.6,3027.4,3.61650107]
[1769610714275,0.00258736,3028.6,3027.6,3.61650107]
[1769610714474,0.00258736,3028.6,3027.7,4.01303433]
[1769610714676,40.8,3028.5,3027.8,0.39653326]
[1769610714877,40.8,3028.5,3027.7,3.61650107]
[1769610714878,40.8,3028.5,3027.9,0.39653326]
[1769610715079,40.8,3028.5,3027.7,3.61650107]
[1769610715080,1.00024121,3028.4,3027.4,3.41084308]
[1769610715468,40.8,3028.5,3027.4,3.41084308]
[1769610715865,7.28,3029.3,3027.3,2.96378969]
[1769610715866,0.60370795,3029.4,3027.8,3.41671227]
[1769610716069,10.51474745,3030.0,3028.3,3.41671227]
[1769610716070,0.60370795,3030.0,3028.3,3.41671227]